[Event "Titled Tuesday Blitz October 11 Early 2022"]
[White "Zou, Chen"]
[Black "Hansen, Eric"]
[WhiteFideId "8610959"]
[BlackFideId "2606771"]
[WhiteElo "2325"]
[BlackElo "2568"]
[Result "0-1"]
[Round "03"]
[TimeControl "180+1"]
[Date "2022.10.11"]
[WhiteClock "0:00:04"]
[BlackClock "0:00:10"]

1. d4 {[%clk 0:03:00]}  Nf6 {[%clk 0:02:59]} 2. c4 {[%clk 0:03:00]}  e6 {[%clk 0:02:59]} 3. Nf3 {[%clk 0:03:00]}  d5 {[%clk 0:02:58]} 4. Nc3 {[%clk 0:03:00]}  a6 {[%clk 0:02:58]} 5. cxd5 {[%clk 0:02:58]}  exd5 {[%clk 0:02:58]} 6. Bg5 {[%clk 0:02:59]}  Be6 {[%clk 0:02:57]} 7. e3 {[%clk 0:02:59]}  Nbd7 {[%clk 0:02:57]} 8. Bd3 {[%clk 0:02:58]}  h6 {[%clk 0:02:57]} 9. Bh4 {[%clk 0:02:31]}  Bd6 {[%clk 0:02:51]} 10. Bg3 {[%clk 0:02:30]}  Bxg3 {[%clk 0:02:46]} 11. hxg3 {[%clk 0:02:30]}  O-O {[%clk 0:02:46]} 12. Rc1 {[%clk 0:02:09]}  c6 {[%clk 0:02:34]} 13. O-O {[%clk 0:01:53]}  Re8 {[%clk 0:02:32]} 14. Ne2 {[%clk 0:01:43]}  Bg4 {[%clk 0:02:28]} 15. Nh2 {[%clk 0:01:40]}  Bxe2 {[%clk 0:02:12]} 16. Qxe2 {[%clk 0:01:38]}  Ne4 {[%clk 0:02:12]} 17. Qc2 {[%clk 0:01:33]}  Ndf6 {[%clk 0:02:12]} 18. Rfe1 {[%clk 0:01:22]}  a5 {[%clk 0:02:11]} 19. Nf1 {[%clk 0:01:20]}  Qd6 {[%clk 0:02:10]} 20. Nd2 {[%clk 0:01:00]}  Nxf2 {[%clk 0:02:10]} 21. Kxf2 {[%clk 0:00:57]}  Ng4+ {[%clk 0:02:10]} 22. Kf3 {[%clk 0:00:53]}  Nh2+ {[%clk 0:02:06]} 23. Kf2 {[%clk 0:00:52]}  Ng4+ {[%clk 0:02:06]} 24. Kf3 {[%clk 0:00:50]}  h5 {[%clk 0:02:03]} 25. Nf1 {[%clk 0:00:16]}  Qf6+ {[%clk 0:01:57]} 26. Ke2 {[%clk 0:00:16]}  Qxd4 {[%clk 0:01:49]} 27. Qd2 {[%clk 0:00:10]}  Qf6 {[%clk 0:01:39]} 28. Kd1 {[%clk 0:00:10]}  Re5 {[%clk 0:01:33]} 29. Kc2 {[%clk 0:00:08]}  Rae8 {[%clk 0:01:33]} 30. Kb1 {[%clk 0:00:07]}  g6 {[%clk 0:01:26]} 31. Re2 {[%clk 0:00:07]}  a4 {[%clk 0:01:23]} 32. a3 {[%clk 0:00:06]}  Qe7 {[%clk 0:01:15]} 33. Rce1 {[%clk 0:00:06]}  Nf6 {[%clk 0:01:15]} 34. Qc3 {[%clk 0:00:06]}  c5 {[%clk 0:01:05]} 35. Bb5 {[%clk 0:00:06]}  Ra8 {[%clk 0:01:03]} 36. Qc2 {[%clk 0:00:06]}  c4 {[%clk 0:01:02]} 37. Bxa4 {[%clk 0:00:04]}  Ra5 {[%clk 0:00:44]} 38. Qd1 {[%clk 0:00:04]}  b5 {[%clk 0:00:43]} 39. Bc2 {[%clk 0:00:04]}  b4 {[%clk 0:00:43]} 40. axb4 {[%clk 0:00:02]}  Qxb4 {[%clk 0:00:43]} 41. Qd2 {[%clk 0:00:03]}  Qb6 {[%clk 0:00:36]} 42. Qc3 {[%clk 0:00:03]}  Re6 {[%clk 0:00:30]} 43. Nd2 {[%clk 0:00:03]}  Rb5 {[%clk 0:00:27]} 44. Kc1 {[%clk 0:00:03]}  Qa7 {[%clk 0:00:24]} 45. Rf1 {[%clk 0:00:03]}  Ng4 {[%clk 0:00:20]} 46. Rfe1 {[%clk 0:00:03]}  Reb6 {[%clk 0:00:19]} 47. Nb1 {[%clk 0:00:02]}  Rxb2 {[%clk 0:00:11]} 48. Qxb2 {[%clk 0:00:03]}  Rxb2 {[%clk 0:00:12]} 49. Kxb2 {[%clk 0:00:03]}  Qb8+ {[%clk 0:00:12]} 50. Kc1 {[%clk 0:00:04]}  Qxg3 {[%clk 0:00:12]} 51. Nc3 {[%clk 0:00:04]}  Qe5 {[%clk 0:00:12]} 52. Kd2 {[%clk 0:00:04]}  d4 {[%clk 0:00:12]} 53. Nd1 {[%clk 0:00:03]}  d3 {[%clk 0:00:12]} 54. Bxd3 {[%clk 0:00:03]}  cxd3 {[%clk 0:00:10]} 55. Kxd3 {[%clk 0:00:04]}  Qd5+ {[%clk 0:00:10]} 56. Kc2 {[%clk 0:00:05]}  Ne5 {[%clk 0:00:10]} 57. Nb2 {[%clk 0:00:05]}  Qe4+ {[%clk 0:00:10]} 58. Kc3 {[%clk 0:00:05]}  h4 {[%clk 0:00:10]} 59. Rd1 {[%clk 0:00:05]}  Qc6+ {[%clk 0:00:10]} 60. Kb3 {[%clk 0:00:04]}  Qb5+ {[%clk 0:00:10]} 0-1


[Site "https://www.chess.com"]

[Event "Titled Tuesday Blitz October 11 Early 2022"]
[White "Alexikov, Alexander"]
[Black "Sailer, Mike"]
[WhiteFideId "14103958"]
[BlackFideId "2012901"]
[WhiteElo "2222"]
[BlackElo "2109"]
[Result "1-0"]
[Round "04"]
[TimeControl "180+1"]
[Date "2022.10.12"]
[WhiteClock "0:00:12"]
[BlackClock "0:00:04"]

1. e4 {[%clk 0:03:00]}  d5 {[%clk 0:03:00]} 2. exd5 {[%clk 0:02:59]}  Qxd5 {[%clk 0:03:00]} 3. Nc3 {[%clk 0:02:58]}  Qd6 {[%clk 0:03:00]} 4. d4 {[%clk 0:02:57]}  Nf6 {[%clk 0:02:59]} 5. Bd3 {[%clk 0:02:56]}  c6 {[%clk 0:02:59]} 6. Nge2 {[%clk 0:02:56]}  Bg4 {[%clk 0:02:59]} 7. f3 {[%clk 0:02:55]}  Bh5 {[%clk 0:02:59]} 8. Bf4 {[%clk 0:02:55]}  Qd8 {[%clk 0:02:58]} 9. Qd2 {[%clk 0:02:51]}  e6 {[%clk 0:02:56]} 10. O-O-O {[%clk 0:02:50]}  Bd6 {[%clk 0:02:56]} 11. Rhe1 {[%clk 0:02:42]}  Bg6 {[%clk 0:02:41]} 12. Bc4 {[%clk 0:02:34]}  Qc7 {[%clk 0:02:34]} 13. Be5 {[%clk 0:02:17]}  Nbd7 {[%clk 0:02:20]} 14. Nf4 {[%clk 0:01:42]}  Bxe5 {[%clk 0:01:50]} 15. dxe5 {[%clk 0:01:38]}  Nd5 {[%clk 0:01:51]} 16. Bxd5 {[%clk 0:01:00]}  cxd5 {[%clk 0:01:49]} 17. Nb5 {[%clk 0:00:56]}  Qb6 {[%clk 0:01:30]} 18. Qb4 {[%clk 0:00:43]}  Qc5 {[%clk 0:01:03]} 19. Qxc5 {[%clk 0:00:33]}  Nxc5 {[%clk 0:01:03]} 20. Nc7+ {[%clk 0:00:33]}  Kd7 {[%clk 0:01:03]} 21. Nxa8 {[%clk 0:00:33]}  Rxa8 {[%clk 0:01:03]} 22. h4 {[%clk 0:00:30]}  f6 {[%clk 0:00:50]} 23. Nxg6 {[%clk 0:00:28]}  hxg6 {[%clk 0:00:50]} 24. c4 {[%clk 0:00:23]}  Rc8 {[%clk 0:00:41]} 25. Kb1 {[%clk 0:00:22]}  Kc6 {[%clk 0:00:23]} 26. cxd5+ {[%clk 0:00:20]}  exd5 {[%clk 0:00:24]} 27. b4 {[%clk 0:00:19]}  Na6 {[%clk 0:00:06]} 28. Rc1+ {[%clk 0:00:17]}  Kd7 {[%clk 0:00:06]} 29. e6+ {[%clk 0:00:14]}  Kd8 {[%clk 0:00:03]} 30. e7+ {[%clk 0:00:13]}  Kd7 {[%clk 0:00:04]} 31. Rxc8 {[%clk 0:00:12]} 1-0


[Site "https://www.chess.com"]

[Event "Titled Tuesday Blitz October 11 Early 2022"]
[White "Ali Abdullahi, Farah"]
[Black "Ferreira, Vitor Hugo Vieira"]
[WhiteFideId "16100212"]
[BlackFideId "2119765"]
[WhiteElo "2301"]
[BlackElo "2168"]
[Result "1/2-1/2"]
[Round "04"]
[TimeControl "180+1"]
[Date "2022.10.12"]
[WhiteClock "0:00:09"]
[BlackClock "0:00:35"]

1. d4 {[%clk 0:02:59]}  d5 {[%clk 0:02:57]} 2. Nf3 {[%clk 0:03:00]}  Nf6 {[%clk 0:02:57]} 3. c4 {[%clk 0:03:01]}  c6 {[%clk 0:02:57]} 4. cxd5 {[%clk 0:03:01]}  cxd5 {[%clk 0:02:57]} 5. Nc3 {[%clk 0:03:02]}  Nc6 {[%clk 0:02:58]} 6. Bg5 {[%clk 0:03:03]}  Ne4 {[%clk 0:02:57]} 7. h4 {[%clk 0:03:03]}  Nxg5 {[%clk 0:02:56]} 8. hxg5 {[%clk 0:03:03]}  Bg4 {[%clk 0:02:55]} 9. e3 {[%clk 0:03:03]}  e6 {[%clk 0:02:54]} 10. Qb3 {[%clk 0:02:54]}  Qb6 {[%clk 0:02:49]} 11. Bb5 {[%clk 0:02:47]}  Be7 {[%clk 0:02:48]} 12. Ne5 {[%clk 0:02:45]}  Bf5 {[%clk 0:02:47]} 13. Bxc6+ {[%clk 0:02:42]}  bxc6 {[%clk 0:02:46]} 14. Qxb6 {[%clk 0:02:41]}  axb6 {[%clk 0:02:46]} 15. Nxc6 {[%clk 0:02:32]}  Bxg5 {[%clk 0:02:46]} 16. f4 {[%clk 0:02:29]}  Bf6 {[%clk 0:02:44]} 17. Nb5 {[%clk 0:02:28]}  O-O {[%clk 0:02:43]} 18. Ne5 {[%clk 0:02:22]}  Rfc8 {[%clk 0:02:34]} 19. Nd6 {[%clk 0:02:15]}  Rc2 {[%clk 0:02:32]} 20. Nxf5 {[%clk 0:02:14]}  exf5 {[%clk 0:02:32]} 21. Nd7 {[%clk 0:02:03]}  Bd8 {[%clk 0:02:22]} 22. O-O {[%clk 0:01:48]}  Rxb2 {[%clk 0:02:21]} 23. Rfc1 {[%clk 0:01:48]}  g5 {[%clk 0:02:14]} 24. Rc6 {[%clk 0:01:43]}  Kg7 {[%clk 0:02:10]} 25. a4 {[%clk 0:01:39]}  b5 {[%clk 0:02:09]} 26. Nb6 {[%clk 0:01:26]}  Bxb6 {[%clk 0:02:07]} 27. Rxb6 {[%clk 0:01:27]}  gxf4 {[%clk 0:02:06]} 28. exf4 {[%clk 0:01:24]}  b4 {[%clk 0:01:58]} 29. a5 {[%clk 0:01:23]}  b3 {[%clk 0:01:59]} 30. a6 {[%clk 0:01:22]}  Ra2 {[%clk 0:01:58]} 31. Rb1 {[%clk 0:01:11]}  Ra4 {[%clk 0:01:49]} 32. R1xb3 {[%clk 0:01:07]}  Rxd4 {[%clk 0:01:49]} 33. Rg3+ {[%clk 0:01:06]}  Kf8 {[%clk 0:01:46]} 34. a7 {[%clk 0:01:06]}  Rxa7 {[%clk 0:01:45]} 35. Rb8+ {[%clk 0:01:04]}  Ke7 {[%clk 0:01:46]} 36. Rg5 {[%clk 0:01:00]}  Rxf4 {[%clk 0:01:44]} 37. Rh5 {[%clk 0:00:57]}  Ra2 {[%clk 0:01:42]} 38. Rxh7 {[%clk 0:00:55]}  Rg4 {[%clk 0:01:42]} 39. Rb7+ {[%clk 0:00:47]}  Ke6 {[%clk 0:01:42]} 40. Rb6+ {[%clk 0:00:45]}  Ke5 {[%clk 0:01:41]} 41. Rxf7 {[%clk 0:00:44]}  Rgxg2+ {[%clk 0:01:40]} 42. Kf1 {[%clk 0:00:44]}  Rgc2 {[%clk 0:01:38]} 43. Re7+ {[%clk 0:00:34]}  Kf4 {[%clk 0:01:37]} 44. Rb4+ {[%clk 0:00:33]}  Kg5 {[%clk 0:01:34]} 45. Re1 {[%clk 0:00:18]}  Rh2 {[%clk 0:01:30]} 46. Kg1 {[%clk 0:00:15]}  Rag2+ {[%clk 0:01:24]} 47. Kf1 {[%clk 0:00:15]}  Rd2 {[%clk 0:01:25]} 48. Kg1 {[%clk 0:00:14]}  Rhe2 {[%clk 0:01:20]} 49. Ra1 {[%clk 0:00:13]}  d4 {[%clk 0:01:19]} 50. Rb8 {[%clk 0:00:13]}  Kf4 {[%clk 0:01:18]} 51. Rf1+ {[%clk 0:00:12]}  Ke3 {[%clk 0:01:04]} 52. Rxf5 {[%clk 0:00:12]}  Re1+ {[%clk 0:00:58]} 53. Rf1 {[%clk 0:00:11]}  Rxf1+ {[%clk 0:00:58]} 54. Kxf1 {[%clk 0:00:12]}  Rd1+ {[%clk 0:00:59]} 55. Kg2 {[%clk 0:00:12]}  d3 {[%clk 0:00:54]} 56. Re8+ {[%clk 0:00:12]}  Kd2 {[%clk 0:00:51]} 57. Kf2 {[%clk 0:00:12]}  Rh1 {[%clk 0:00:50]} 58. Ra8 {[%clk 0:00:11]}  Rh2+ {[%clk 0:00:50]} 59. Kf3 {[%clk 0:00:11]}  Re2 {[%clk 0:00:48]} 60. Ra2+ {[%clk 0:00:10]}  Kd1 {[%clk 0:00:47]} 61. Ra1+ {[%clk 0:00:11]}  Kd2 {[%clk 0:00:44]} 62. Ra2+ {[%clk 0:00:11]}  Ke1 {[%clk 0:00:36]} 63. Ra1+ {[%clk 0:00:09]}  Kd2 {[%clk 0:00:35]} 64. Ra2+ {[%clk 0:00:09]} 1/2-1/2


[Site "https://www.chess.com"]

[Event "Titled Tuesday Blitz October 11 Early 2022"]
[White "Ambartsumova, Karina"]
[Black "Rodriguez Santiago, Jaime"]
[WhiteFideId "4166299"]
[BlackFideId "3100898"]
[WhiteElo "2299"]
[BlackElo "2025"]
[Result "1-0"]
[Round "04"]
[TimeControl "180+1"]
[Date "2022.10.12"]
[WhiteClock "0:00:20"]
[BlackClock "0:00:24"]

1. e4 {[%clk 0:03:00]}  c6 {[%clk 0:02:59]} 2. Ne2 {[%clk 0:02:59]}  d5 {[%clk 0:02:59]} 3. e5 {[%clk 0:03:00]}  Bf5 {[%clk 0:02:58]} 4. Ng3 {[%clk 0:02:59]}  Bg6 {[%clk 0:02:57]} 5. h4 {[%clk 0:03:00]}  h5 {[%clk 0:02:58]} 6. e6 {[%clk 0:03:00]}  Qd6 {[%clk 0:02:57]} 7. exf7+ {[%clk 0:02:58]}  Bxf7 {[%clk 0:02:56]} 8. d4 {[%clk 0:02:58]}  Nf6 {[%clk 0:02:43]} 9. f4 {[%clk 0:02:56]}  g6 {[%clk 0:02:38]} 10. Be3 {[%clk 0:02:50]}  Nbd7 {[%clk 0:02:37]} 11. Bd3 {[%clk 0:02:44]}  Ng4 {[%clk 0:02:36]} 12. Qe2 {[%clk 0:02:41]}  Nxe3 {[%clk 0:02:29]} 13. Qxe3 {[%clk 0:02:40]}  Bh6 {[%clk 0:02:30]} 14. O-O {[%clk 0:02:36]}  Nf6 {[%clk 0:02:19]} 15. Qe5 {[%clk 0:02:22]}  O-O-O {[%clk 0:02:02]} 16. Qxd6 {[%clk 0:02:13]}  exd6 {[%clk 0:01:49]} 17. Nc3 {[%clk 0:02:12]}  Rde8 {[%clk 0:01:43]} 18. Nge2 {[%clk 0:01:41]}  Ng4 {[%clk 0:01:41]} 19. Rf3 {[%clk 0:01:32]}  Bg7 {[%clk 0:01:29]} 20. f5 {[%clk 0:01:29]}  gxf5 {[%clk 0:01:10]} 21. Bxf5+ {[%clk 0:01:30]}  Be6 {[%clk 0:01:10]} 22. Bg6 {[%clk 0:01:29]}  Re7 {[%clk 0:01:07]} 23. Raf1 {[%clk 0:01:28]}  Kd7 {[%clk 0:01:03]} 24. Nd1 {[%clk 0:00:50]}  Rh6 {[%clk 0:01:02]} 25. Bd3 {[%clk 0:00:48]}  Bf6 {[%clk 0:00:51]} 26. g3 {[%clk 0:00:45]}  Bg7 {[%clk 0:00:50]} 27. c3 {[%clk 0:00:45]}  c5 {[%clk 0:00:46]} 28. dxc5 {[%clk 0:00:44]}  dxc5 {[%clk 0:00:46]} 29. Nf4 {[%clk 0:00:42]}  Bg8 {[%clk 0:00:36]} 30. Nf2 {[%clk 0:00:38]}  Nxf2 {[%clk 0:00:34]} 31. R1xf2 {[%clk 0:00:35]}  d4 {[%clk 0:00:34]} 32. Rd2 {[%clk 0:00:28]}  Kc6 {[%clk 0:00:29]} 33. a4 {[%clk 0:00:24]}  dxc3 {[%clk 0:00:28]} 34. bxc3 {[%clk 0:00:25]}  Bxc3 {[%clk 0:00:28]} 35. Bb5+ {[%clk 0:00:25]}  Kb6 {[%clk 0:00:29]} 36. Rxc3 {[%clk 0:00:26]}  c4 {[%clk 0:00:27]} 37. Nd5+ {[%clk 0:00:20]}  Bxd5 {[%clk 0:00:27]} 38. Rxd5 {[%clk 0:00:21]}  Rc7 {[%clk 0:00:25]} 39. Rxc4 {[%clk 0:00:20]}  Rxc4 {[%clk 0:00:24]} 40. Bxc4 {[%clk 0:00:21]}  a6 {[%clk 0:00:25]} 41. a5+ {[%clk 0:00:20]}  Ka7 {[%clk 0:00:24]} 42. Be2 {[%clk 0:00:20]}  Rh7 {[%clk 0:00:24]} 43. Bxh5 {[%clk 0:00:20]}  Rg7 {[%clk 0:00:23]} 44. Kg2 {[%clk 0:00:20]}  b6 {[%clk 0:00:24]} 45. Bf3 {[%clk 0:00:19]}  bxa5 {[%clk 0:00:23]} 46. Rxa5 {[%clk 0:00:20]}  Kb6 {[%clk 0:00:23]} 47. Rg5 {[%clk 0:00:20]}  a5 {[%clk 0:00:24]} 48. Rxg7 {[%clk 0:00:20]} 1-0


[Site "https://www.chess.com"]

[Event "Titled Tuesday Blitz October 11 Early 2022"]
[White "Amgalantengis, Enkh-Amgalan"]
[Black "Bethke, Richard"]
[WhiteFideId "4903536"]
[BlackFideId "12959243"]
[WhiteElo "1772"]
[BlackElo "2369"]
[Result "1-0"]
[Round "04"]
[TimeControl "180+1"]
[Date "2022.10.12"]
[WhiteClock "0:00:35"]
[BlackClock "0:00:01"]

1. d4 {[%clk 0:02:59]}  f5 {[%clk 0:02:57]} 2. Bg5 {[%clk 0:02:57]}  h6 {[%clk 0:02:56]} 3. Bh4 {[%clk 0:02:57]}  g5 {[%clk 0:02:56]} 4. Bg3 {[%clk 0:02:57]}  Nf6 {[%clk 0:02:53]} 5. e3 {[%clk 0:02:57]}  d6 {[%clk 0:02:53]} 6. h4 {[%clk 0:02:57]}  g4 {[%clk 0:02:53]} 7. Bd3 {[%clk 0:02:56]}  Nh5 {[%clk 0:02:47]} 8. Ne2 {[%clk 0:02:56]}  Nc6 {[%clk 0:02:47]} 9. c4 {[%clk 0:02:52]}  e5 {[%clk 0:02:46]} 10. Nbc3 {[%clk 0:02:42]}  Bg7 {[%clk 0:02:39]} 11. O-O {[%clk 0:02:32]}  O-O {[%clk 0:02:29]} 12. d5 {[%clk 0:02:21]}  Ne7 {[%clk 0:02:24]} 13. f4 {[%clk 0:02:21]}  e4 {[%clk 0:02:02]} 14. Bc2 {[%clk 0:02:21]}  Ng6 {[%clk 0:02:00]} 15. Qe1 {[%clk 0:02:17]}  Nxg3 {[%clk 0:01:58]} 16. Nxg3 {[%clk 0:02:13]}  Qxh4 {[%clk 0:01:59]} 17. Nge2 {[%clk 0:02:08]}  Bd7 {[%clk 0:01:52]} 18. g3 {[%clk 0:02:06]}  Qh3 {[%clk 0:01:47]} 19. Rf2 {[%clk 0:01:58]}  Nh4 {[%clk 0:01:06]} 20. gxh4 {[%clk 0:01:53]}  Qxe3 {[%clk 0:01:07]} 21. Kg2 {[%clk 0:01:42]}  Qh3+ {[%clk 0:00:48]} 22. Kg1 {[%clk 0:01:35]}  Qxh4 {[%clk 0:00:46]} 23. Rh2 {[%clk 0:01:33]}  Qe7 {[%clk 0:00:45]} 24. Qh4 {[%clk 0:01:31]}  Qxh4 {[%clk 0:00:37]} 25. Rxh4 {[%clk 0:01:31]}  c6 {[%clk 0:00:34]} 26. Rd1 {[%clk 0:01:23]}  Rad8 {[%clk 0:00:32]} 27. dxc6 {[%clk 0:01:23]}  Bxc6 {[%clk 0:00:30]} 28. Nd4 {[%clk 0:01:20]}  Rc8 {[%clk 0:00:18]} 29. Nxc6 {[%clk 0:01:12]}  Rxc6 {[%clk 0:00:19]} 30. Nd5 {[%clk 0:01:12]}  Rxc4 {[%clk 0:00:17]} 31. Bb3 {[%clk 0:01:12]}  Rc5 {[%clk 0:00:13]} 32. Nf6+ {[%clk 0:01:04]}  Kh8 {[%clk 0:00:13]} 33. Nd7 {[%clk 0:01:02]}  Re8 {[%clk 0:00:04]} 34. Nxc5 {[%clk 0:01:01]}  dxc5 {[%clk 0:00:05]} 35. Rd7 {[%clk 0:00:59]}  e3 {[%clk 0:00:04]} 36. Kf1 {[%clk 0:00:57]}  e2+ {[%clk 0:00:04]} 37. Ke1 {[%clk 0:00:57]}  g3 {[%clk 0:00:04]} 38. Rd3 {[%clk 0:00:53]}  Bd4 {[%clk 0:00:02]} 39. Rxd4 {[%clk 0:00:46]}  cxd4 {[%clk 0:00:02]} 40. Rxh6+ {[%clk 0:00:45]}  Kg7 {[%clk 0:00:03]} 41. Rh1 {[%clk 0:00:45]}  d3 {[%clk 0:00:02]} 42. Rg1 {[%clk 0:00:44]}  Kf6 {[%clk 0:00:02]} 43. Bd5 {[%clk 0:00:41]}  Rd8 {[%clk 0:00:02]} 44. Bf3 {[%clk 0:00:37]}  Re8 {[%clk 0:00:02]} 45. Kd2 {[%clk 0:00:37]}  Rc8 {[%clk 0:00:01]} 46. Kxd3 {[%clk 0:00:35]} 1-0


[Site "https://www.chess.com"]

[Event "Titled Tuesday Blitz October 11 Early 2022"]
[White "Araujo Sanchez, Josue"]
[Black "Papasimakopoulos, Alexandros"]
[WhiteFideId "6416896"]
[BlackFideId "4244125"]
[WhiteElo "2370"]
[BlackElo "2357"]
[Result "1-0"]
[Round "04"]
[TimeControl "180+1"]
[Date "2022.10.12"]
[WhiteClock "0:01:55"]
[BlackClock "0:00:14"]

1. e4 {[%clk 0:03:00]}  e6 {[%clk 0:02:52]} 2. d4 {[%clk 0:03:00]}  d5 {[%clk 0:02:51]} 3. Nd2 {[%clk 0:03:01]}  Nf6 {[%clk 0:02:50]} 4. Bd3 {[%clk 0:03:00]}  c5 {[%clk 0:02:50]} 5. e5 {[%clk 0:02:58]}  Nfd7 {[%clk 0:02:49]} 6. c3 {[%clk 0:02:59]}  Nc6 {[%clk 0:02:50]} 7. Ne2 {[%clk 0:02:59]}  cxd4 {[%clk 0:02:47]} 8. cxd4 {[%clk 0:03:00]}  f6 {[%clk 0:02:47]} 9. exf6 {[%clk 0:03:00]}  Nxf6 {[%clk 0:02:46]} 10. O-O {[%clk 0:02:59]}  Bd6 {[%clk 0:02:45]} 11. Nf3 {[%clk 0:03:00]}  Qc7 {[%clk 0:02:45]} 12. Nc3 {[%clk 0:02:59]}  a6 {[%clk 0:02:44]} 13. h3 {[%clk 0:02:50]}  O-O {[%clk 0:02:43]} 14. Be3 {[%clk 0:02:51]}  Bd7 {[%clk 0:02:43]} 15. Rc1 {[%clk 0:02:50]}  h6 {[%clk 0:02:40]} 16. Na4 {[%clk 0:02:48]}  Rae8 {[%clk 0:02:26]} 17. Bb1 {[%clk 0:02:44]}  Re7 {[%clk 0:02:23]} 18. Re1 {[%clk 0:02:43]}  Be8 {[%clk 0:02:24]} 19. Ne5 {[%clk 0:02:42]}  Bxe5 {[%clk 0:02:20]} 20. dxe5 {[%clk 0:02:43]}  Nd7 {[%clk 0:02:16]} 21. f4 {[%clk 0:02:42]}  g6 {[%clk 0:01:57]} 22. b4 {[%clk 0:02:39]}  Kg7 {[%clk 0:01:44]} 23. Qg4 {[%clk 0:02:35]}  h5 {[%clk 0:01:24]} 24. Qg3 {[%clk 0:02:32]}  Kg8 {[%clk 0:01:02]} 25. Qh4 {[%clk 0:02:24]}  Rh7 {[%clk 0:00:52]} 26. Nc5 {[%clk 0:02:17]}  Nxc5 {[%clk 0:00:46]} 27. Bxc5 {[%clk 0:02:18]}  Rg7 {[%clk 0:00:26]} 28. Bxf8 {[%clk 0:02:14]}  Kxf8 {[%clk 0:00:27]} 29. a3 {[%clk 0:02:14]}  Qe7 {[%clk 0:00:24]} 30. Qxe7+ {[%clk 0:02:13]}  Kxe7 {[%clk 0:00:24]} 31. h4 {[%clk 0:02:13]}  Rg8 {[%clk 0:00:24]} 32. Bd3 {[%clk 0:02:13]}  Rf8 {[%clk 0:00:25]} 33. g3 {[%clk 0:02:11]}  Rg8 {[%clk 0:00:25]} 34. Kf2 {[%clk 0:02:11]}  Bd7 {[%clk 0:00:25]} 35. Ke3 {[%clk 0:02:12]}  Kf7 {[%clk 0:00:26]} 36. Rc5 {[%clk 0:02:11]}  Ra8 {[%clk 0:00:24]} 37. Rec1 {[%clk 0:02:12]}  Rb8 {[%clk 0:00:21]} 38. Kd2 {[%clk 0:02:11]}  Be8 {[%clk 0:00:21]} 39. Ke3 {[%clk 0:02:08]}  Ke7 {[%clk 0:00:21]} 40. Bc2 {[%clk 0:02:06]}  Ra8 {[%clk 0:00:20]} 41. Ba4 {[%clk 0:02:01]}  Ra7 {[%clk 0:00:20]} 42. Bxc6 {[%clk 0:02:01]}  bxc6 {[%clk 0:00:19]} 43. Kd4 {[%clk 0:02:02]}  Rc7 {[%clk 0:00:18]} 44. Ra5 {[%clk 0:02:02]}  Ra7 {[%clk 0:00:18]} 45. Kc5 {[%clk 0:02:03]}  Kd7 {[%clk 0:00:18]} 46. Kb6 {[%clk 0:02:03]}  Ra8 {[%clk 0:00:18]} 47. Rxa6 {[%clk 0:02:03]}  Rb8+ {[%clk 0:00:19]} 48. Kc5 {[%clk 0:02:03]}  Rb5+ {[%clk 0:00:19]} 49. Kd4 {[%clk 0:02:03]}  Kc7 {[%clk 0:00:19]} 50. Ra7+ {[%clk 0:02:04]}  Kc8 {[%clk 0:00:20]} 51. Rc5 {[%clk 0:02:02]}  Rb8 {[%clk 0:00:19]} 52. Rca5 {[%clk 0:02:03]}  Rb6 {[%clk 0:00:18]} 53. Kc5 {[%clk 0:02:03]}  Rb5+ {[%clk 0:00:17]} 54. Rxb5 {[%clk 0:02:03]}  cxb5 {[%clk 0:00:17]} 55. Ra8+ {[%clk 0:02:03]}  Kd7 {[%clk 0:00:18]} 56. Rb8 {[%clk 0:02:00]}  Ke7 {[%clk 0:00:16]} 57. Rb7+ {[%clk 0:02:00]}  Kd8 {[%clk 0:00:15]} 58. Kd6 {[%clk 0:01:58]}  Kc8 {[%clk 0:00:16]} 59. Rc7+ {[%clk 0:01:58]}  Kd8 {[%clk 0:00:16]} 60. Rc5 {[%clk 0:01:58]}  Bd7 {[%clk 0:00:15]} 61. Rc7 {[%clk 0:01:57]}  Be8 {[%clk 0:00:16]} 62. Ra7 {[%clk 0:01:55]}  Bc6 {[%clk 0:00:15]} 63. Kxc6 {[%clk 0:01:54]}  d4 {[%clk 0:00:14]} 64. Rd7+ {[%clk 0:01:55]} 1-0


[Site "https://www.chess.com"]